fUSD/lending_fUSD_20250119
["ID","MTS","AMOUNT","RATE_DAILY","PERIOD"]
[349535040,1737283865623,-500.0,0.00019726,2]
[349535041,1737283865632,-500.0,0.00019726,2]
[349535042,1737283865641,-594.21732715,0.00019726,2]
[349535043,1737283865650,-544.77,0.00019726,2]
[349535044,1737283865659,-500.0,0.00019726,2]
[349535045,1737283865668,-500.0,0.00019726,2]
[349535046,1737283865678,-1632.27,0.00019726,2]
[349535047,1737283865687,-500.0,0.00019726,2]
[349535048,1737283865696,-550.47,0.00019726,2]
[349535049,1737283865706,-1360.05,0.00019726,2]
[349535050,1737283865715,-300.0,0.00019726,2]
[349535051,1737283865725,-730.23,0.00019726,2]
[349535052,1737283865734,-494.84808624,0.00019726,2]
[349535053,1737283865744,-500.0,0.00019726,2]
[349535054,1737283865753,-1209.91,0.00019726,2]
[349535055,1737283865763,-500.0,0.00019726,2]
[349535056,1737283865773,-500.0,0.00019726,2]
[349535057,1737283865782,-500.0,0.00019726,2]
[349535058,1737283865791,-385.48956888,0.00019726,2]
[349535059,1737283865800,-962.98,0.00019726,2]
[349535060,1737283865810,-605.04180171,0.00019726,2]
[349535061,1737283865819,-500.0,0.00019726,2]
[349535062,1737283865829,-500.0,0.00019726,2]
[349535063,1737283865838,-500.0,0.00019726,2]
[349535064,1737283865848,-1043.59,0.00019726,2]
[349535065,1737283865857,-704.36,0.00019726,2]
[349535066,1737283865867,-500.0,0.00019726,2]
[349535067,1737283865877,-543.14,0.00019726,2]
[349535068,1737283865887,-265.88374902,0.00019726,2]
[349535069,1737283865897,-2894.56,0.00019726,2]
[349535070,1737283865906,-500.0,0.00019726,2]
[349535071,1737283865915,-500.0,0.00019726,2]
[349535072,1737283865929,-500.0,0.00019726,2]
[349535073,1737283865939,-1112.25,0.00019726,2]
[349535074,1737283865948,-500.0,0.00019726,2]
[349535075,1737283865958,-500.0,0.00019726,2]
[349535076,1737283865967,-1126.32,0.00019726,2]
[349535077,1737283865978,-541.55,0.00019726,2]
[349535078,1737283865988,-1448.99,0.00019726,2]
[349535079,1737283865998,-500.0,0.00019726,2]
[349535080,1737283866007,-500.0,0.00019726,2]
[349535081,1737283866019,-500.0,0.00019726,2]
[349535082,1737283866028,-913.02,0.00019726,2]
[349535083,1737283866040,-500.0,0.00019726,2]
[349535084,1737283866050,-500.0,0.00019726,2]
[349535085,1737283866059,-500.0,0.00019726,2]
[349535086,1737283866068,-424.87142593,0.00019726,2]
[349535087,1737283866078,-500.0,0.00019726,2]
[349535088,1737283866088,-500.0,0.00019726,2]
[349535089,1737283866098,-1265.52,0.00019726,2]
[349535090,1737283866108,-4009.74,0.00019726,2]
[349535091,1737283866117,-500.0,0.00019726,2]
[349535092,1737283866126,-500.0,0.00019726,2]
[349535093,1737283866135,-500.0,0.00019726,2]
[349535094,1737283866144,-700.51,0.00019726,2]
[349535095,1737283866154,-500.0,0.00019726,2]
[349535096,1737283866163,-500.0,0.00019726,2]
[349535097,1737283866175,-500.0,0.00019726,2]
[349535098,1737283866185,-500.0,0.00019726,2]
[349535099,1737283866194,-500.0,0.00019726,2]
[349535100,1737283866203,-500.0,0.00019726,2]
[349535101,1737283866212,-940.25,0.00019726,2]
[349535102,1737283866221,-500.0,0.00019726,2]
[349535103,1737283866235,-2618.63,0.00019726,2]
[349535104,1737283866245,-500.0,0.00019726,2]
[349535105,1737283866257,-500.0,0.00019726,2]
[349535106,1737283866267,-500.0,0.00019726,2]
[349535107,1737283866276,-500.0,0.00019726,2]
[349535108,1737283866286,-500.0,0.00019726,2]
[349535109,1737283866297,-600.2,0.00019726,2]
[349535110,1737283866306,-500.0,0.00019726,2]
[349535111,1737283866315,-500.0,0.00019726,2]
[349535112,1737283866325,-500.0,0.00019726,2]
[349535113,1737283866335,-7315.83,0.00019726,2]
[349535114,1737283866344,-500.0,0.00019726,2]
[349535115,1737283866353,-644.97253192,0.00019726,2]
[349535116,1737283866362,-312.9163053,0.00019726,2]
[349535117,1737283866372,-2144.05,0.00019726,2]
[349535118,1737283866384,-1886.57,0.00019726,2]
[349535119,1737283866393,-1320.33,0.00019726,2]
[349535120,1737283866402,-500.0,0.00019726,2]
[349535121,1737283866411,-500.0,0.00019726,2]
[349535122,1737283866423,-500.0,0.00019726,2]
[349535123,1737283866432,-500.0,0.00019726,2]
[349535124,1737283866441,-1833.46,0.00019726,2]
[349535125,1737283866450,-500.0,0.00019726,2]
[349535126,1737283866459,-500.0,0.00019726,2]
[349535127,1737283866469,-1146.48,0.00019726,2]
[349535128,1737283866478,-500.0,0.00019726,2]
[349535129,1737283866488,-6964.65,0.00019726,2]
[349535130,1737283866497,-500.0,0.00019726,2]
[349535131,1737283866506,-500.0,0.00019726,2]
[349535132,1737283866515,-500.0,0.00019726,2]
[349535133,1737283866525,-1729.83,0.00019726,2]
[349535134,1737283866534,-628.39995375,0.00019726,2]
[349535135,1737283866543,-500.0,0.00019726,2]
[349535136,1737283866553,-2349.68,0.00019726,2]
[349535137,1737283866562,-500.0,0.00019726,2]
[349535138,1737283866572,-506.84013817,0.00019726,2]
[349535139,1737283866581,-570.28812613,0.00019726,2]
[349535140,1737283866590,-2142.93,0.00019726,2]
[349535141,1737283866599,-500.0,0.00019726,2]
[349535142,1737283866608,-500.0,0.00019726,2]
[349535143,1737283866618,-1744.21,0.00019726,2]
[349535144,1737283866627,-500.0,0.00019726,2]
[349535145,1737283866636,-686.43,0.00019726,2]
[349535146,1737283866646,-2892.09,0.00019726,2]
[349535147,1737283866655,-151.0,0.00019726,2]
[349535148,1737283866664,-151.0,0.00019726,2]
[349535149,1737283866676,-208.1142255,0.00019726,2]
[349535150,1737283866685,-500.0,0.00019726,2]
[349535151,1737283866695,-500.0,0.00019726,2]
[349535152,1737283866704,-500.0,0.00019726,2]
[349535153,1737283866713,-1002.08,0.00019726,2]
[349535154,1737283866722,-205.56,0.00019726,2]
[349535155,1737283866731,-623.62,0.00019726,2]
[349535156,1737283866740,-500.0,0.00019726,2]
[349535157,1737283866749,-770.77,0.00019726,2]
[349535158,1737283866758,-564.89344077,0.00019726,2]
[349535159,1737283866767,-9460.13,0.00019726,2]
[349535160,1737283866776,-2072.12,0.00019726,2]
[349535161,1737283866786,-478.02798402,0.00019726,2]
[349535162,1737283866795,-500.0,0.00019726,2]
[349535163,1737283866805,-4098.31,0.00019726,2]
[349535164,1737283866815,-500.0,0.00019726,2]
[349535165,1737283866824,-500.0,0.00019726,2]
[349535166,1737283866833,-503.74,0.00019726,2]
[349535167,1737283866843,-500.0,0.00019726,2]
[349535168,1737283866852,-509.25,0.00019726,2]
[349535169,1737283866861,-500.0,0.00019726,2]
[349535170,1737283866871,-500.0,0.00019726,2]
[349535171,1737283866880,-389.62549681,0.00019726,2]
[349535172,1737283866890,-500.0,0.00019726,2]
[349535173,1737283866899,-500.0,0.00019726,2]
[349535174,1737283866909,-500.0,0.00019726,2]
[349535175,1737283866918,-1622.26,0.00019726,2]
[349535176,1737283866930,-500.0,0.00019726,2]
[349535177,1737283866940,-500.0,0.00019726,2]
[349535178,1737283866949,-839.58,0.00019726,2]
[349535179,1737283866959,-210.53471146,0.00019726,2]
[349535180,1737283866968,-500.0,0.00019726,2]
[349535181,1737283866977,-746.16,0.00019726,2]
[349535182,1737283866986,-622.13,0.00019726,2]
[349535183,1737283866996,-500.0,0.00019726,2]
[349535184,1737283867005,-151.0,0.00019726,2]
[349535185,1737283867015,-2122.49,0.00019726,2]
[349535186,1737283867024,-700.78,0.00019726,2]
[349535187,1737283867033,-151.0,0.00019726,2]
[349535188,1737283867043,-500.0,0.00019726,2]
[349535189,1737283867052,-500.0,0.00019726,2]
[349535190,1737283867061,-1394.781451,0.00019726,2]
[349535191,1737283867069,-1394.781451,0.00019726,2]
[349535192,1737283867078,-500.0,0.00019726,2]
[349535193,1737283867087,-500.0,0.00019726,2]
[349535194,1737283867096,-6710.42,0.00019726,2]
[349535195,1737283867105,-500.0,0.00019726,2]
[349535196,1737283867115,-968.36,0.00019726,2]
[349535197,1737283867124,-500.0,0.00019726,2]
[349535198,1737283867133,-500.0,0.00019726,2]
[349535199,1737283867143,-500.0,0.00019726,2]
[349535200,1737283867152,-1394.781451,0.00019726,2]
[349535201,1737283867161,-515.12971938,0.00019726,2]
[349535202,1737283867173,-1394.781451,0.00019726,2]
[349535203,1737283867182,-500.0,0.00019726,2]
[349535204,1737283867191,-2138.74,0.00019726,2]
[349535205,1737283867200,-2990.26,0.00019726,2]
[349535206,1737283867210,-500.0,0.00019726,2]
[349535207,1737283867219,-517.04420891,0.00019726,2]
[349535208,1737283867228,-509.1139028,0.00019726,2]
[349535209,1737283867237,-939.99,0.00019726,2]
[349535210,1737283867247,-1497.89,0.00019726,2]
[349535211,1737283867260,-287.54762868,0.00019726,2]
[349535212,1737283867270,-500.0,0.00019726,2]
[349535213,1737283867279,-500.0,0.00019726,2]
[349535214,1737283867288,-500.0,0.00019726,2]
[349535215,1737283867298,-500.0,0.00019726,2]
[349535216,1737283867431,-500.0,0.00019726,2]
[349535217,1737283867449,-309.06297994,0.00019726,2]
[349535218,1737283867459,-1550.84,0.00019726,2]
[349535219,1737283867468,-500.0,0.00019726,2]
[349535220,1737283867477,-500.0,0.00019726,2]
[349535221,1737283867488,-500.0,0.00019726,2]
[349535222,1737283867499,-500.0,0.00019726,2]
[349535223,1737283867510,-1454.18,0.00019726,2]
[349535224,1737283867521,-660.46,0.00019726,2]
[349535225,1737283867531,-857.18,0.00019726,2]
[349535226,1737283867541,-2515.58,0.00019726,2]
[349535227,1737283867551,-500.0,0.00019726,2]
[349535228,1737283867560,-500.0,0.00019726,2]
[349535229,1737283867571,-500.0,0.00019726,2]
[349535230,1737283867581,-500.0,0.00019726,2]
[349535231,1737283867591,-1304.59,0.00019726,2]
[349535232,1737283867601,-500.0,0.00019726,2]
[349535233,1737283867610,-554.55860215,0.00019726,2]
[349535234,1737283867621,-1399.53,0.00019726,2]
[349535235,1737283867633,-500.0,0.00019726,2]
[349535236,1737283867643,-500.0,0.00019726,2]
[349535237,1737283867654,-961.23,0.00019726,2]
[349535238,1737283867664,-500.0,0.00019726,2]
[349535239,1737283867675,-500.0,0.00019726,2]
[349535240,1737283867684,-6814.74,0.00019726,2]
[349535241,1737283867693,-500.0,0.00019726,2]
[349535242,1737283867702,-605.59109938,0.00019726,2]
[349535243,1737283867711,-563.53,0.00019726,2]
[349535244,1737283867720,-500.0,0.00019726,2]
[349535245,1737283867729,-2694.65,0.00019726,2]
[349535246,1737283867739,-500.0,0.00019726,2]
[349535247,1737283867748,-500.0,0.00019726,2]
[349535248,1737283867758,-500.0,0.00019726,2]
[349535249,1737283867767,-500.0,0.00019726,2]
[349535250,1737283867775,-2319.64,0.00019726,2]
[349535251,1737283867784,-2281.0,0.00019726,2]
[349535252,1737283867796,-500.0,0.00019726,2]
[349535253,1737283867805,-500.0,0.00019726,2]
[349535254,1737283867814,-500.0,0.00019726,2]
[349535255,1737283867824,-500.0,0.00019726,2]
[349535256,1737283867833,-500.0,0.00019726,2]
[349535257,1737283867842,-500.0,0.00019726,2]
[349535258,1737283867851,-579.85,0.00019726,2]
[349535259,1737283867860,-515.16708114,0.00019726,2]
[349535260,1737283867869,-608.39,0.00019726,2]
[349535261,1737283867878,-500.0,0.00019726,2]
[349535262,1737283867887,-814.26,0.00019726,2]
[349535263,1737283867897,-500.0,0.00019726,2]
[349535264,1737283867906,-666.3,0.00019726,2]
[349535265,1737283867915,-1602.86,0.00019726,2]
[349535266,1737283867926,-510.93,0.00019726,2]
[349535267,1737283867936,-500.0,0.00019726,2]
[349535268,1737283867945,-1636.5,0.00019726,2]
[349535269,1737283867954,-500.0,0.00019726,2]
[349535270,1737283867963,-500.0,0.00019726,2]
[349535271,1737283867972,-251.57352325,0.00019726,2]
[349535272,1737283867982,-584.32752822,0.00019726,2]
[349535273,1737283867991,-500.0,0.00019726,2]
[349535274,1737283868001,-626.38,0.00019726,2]
[349535275,1737283868011,-780.64,0.00019726,2]
[349535276,1737283868020,-1000.0,0.00019726,2]
[349535277,1737283868029,-633.29,0.00019726,2]
[349535278,1737283868039,-500.0,0.00019726,2]
[349535279,1737283868049,-500.0,0.00019726,2]
[349535280,1737283868058,-500.0,0.00019726,2]
[349535281,1737283868067,-500.0,0.00019726,2]
[349535282,1737283868077,-500.0,0.00019726,2]
[349535283,1737283868087,-272.28692683,0.00019726,2]
[349535284,1737283868096,-1313.29,0.00019726,2]
[349535285,1737283868105,-500.0,0.00019726,2]
[349535286,1737283868115,-500.0,0.00019726,2]
[349535287,1737283868125,-659.22,0.00019726,2]
[349535288,1737283868134,-917.59,0.00019726,2]
[349535289,1737283868143,-500.0,0.00019726,2]
[349535290,1737283868151,-500.0,0.00019726,2]
[349535291,1737283868160,-500.0,0.00019726,2]
[349535292,1737283868170,-562.37,0.00019726,2]
[349535293,1737283868182,-633.86,0.00019726,2]
[349535294,1737283868191,-497.050586,0.00019726,2]
[349535295,1737283868202,-497.050586,0.00019726,2]
[349535296,1737283868211,-500.0,0.00019726,2]
[349535297,1737283868220,-1551.56,0.00019726,2]
[349535298,1737283868230,-500.0,0.00019726,2]
[349535299,1737283868239,-500.0,0.00019726,2]
[349535300,1737283868249,-1631.28,0.00019726,2]
[349535301,1737283868262,-500.0,0.00019726,2]
[349535302,1737283868271,-509.87,0.00019726,2]
[349535303,1737283868280,-500.0,0.00019726,2]
[349535304,1737283868290,-497.050586,0.00019726,2]
[349535305,1737283868299,-500.0,0.00019726,2]
[349535306,1737283868308,-497.050586,0.00019726,2]
[349535307,1737283868317,-500.0,0.00019726,2]
[349535308,1737283868327,-500.0,0.00019726,2]
[349535309,1737283868337,-11562.91,0.00019726,2]
[349535310,1737283868346,-570.96585938,0.00019726,2]
[349535311,1737283868355,-500.0,0.00019726,2]
[349535312,1737283868364,-500.0,0.00019726,2]
[349535313,1737283868374,-2945.05,0.00019726,2]
[349535314,1737283868384,-1035.44,0.00019726,2]
[349535315,1737283868393,-1288.18,0.00019726,2]
[349535316,1737283868402,-500.0,0.00019726,2]
[349535317,1737283868412,-500.0,0.00019726,2]
[349535318,1737283868421,-500.0,0.00019726,2]
[349535319,1737283868432,-604.12,0.00019726,2]
[349535320,1737283868441,-701.15,0.00019726,2]
[349535321,1737283868451,-504.19935443,0.00019726,2]
[349535322,1737283868460,-500.0,0.00019726,2]
[349535323,1737283868469,-684.27,0.00019726,2]
[349535324,1737283868478,-500.0,0.00019726,2]
[349535325,1737283868487,-500.0,0.00019726,2]
[349535326,1737283868496,-726.31,0.00019726,2]
[349535327,1737283868505,-693.12,0.00019726,2]
[349535328,1737283868514,-155.64074141,0.00019726,2]
[349535329,1737283868523,-1243.35,0.00019726,2]
[349535330,1737283868534,-500.0,0.00019726,2]
[349535331,1737283868543,-500.0,0.00019726,2]
[349535332,1737283868555,-500.0,0.00019726,2]
[349535333,1737283868565,-583.23,0.00019726,2]
[349535334,1737283868574,-211.32305213,0.00019726,2]
[349535335,1737283868583,-203.94393132,0.00019733,2]
[349535336,1737283868593,-1000.0,0.00019743,2]
[349535337,1737283868603,-9176.19454945,0.0001978,2]
[349535338,1737283868611,-500.0,0.00019862,2]
[349535339,1737283868620,-173.83,0.00019863,2]
[349535340,1737283868630,-871.3353095,0.00019868,2]
[349535341,1737283868639,-283651.0,0.0001987,2]
[349535342,1737283868649,-125507.45498091,0.0001988,2]
[349535343,1737283868659,-151.0,0.0001988,2]
[349535344,1737283868668,-165.177093,0.0001988,2]
[349535345,1737283868678,-165.177093,0.0001988,2]
[349535346,1737283868688,-156.895581,0.0001988,2]
[349535347,1737283868697,-156.895581,0.0001988,2]
[349535348,1737283868706,-215.623532,0.0001988,2]
[349535349,1737283868716,-215.623532,0.0001988,2]
[349535350,1737283868725,-151.0,0.0001988,2]
[349535351,1737283868734,-1499.614895,0.0001988,2]
[349535352,1737283868745,-151.0,0.0001988,2]
[349535353,1737283868755,-1499.614895,0.0001988,2]
[349535354,1737283868764,-151.0,0.0001988,2]
[349535355,1737283868774,-151.0,0.0001988,2]
[349535356,1737283868783,-1394.781451,0.0001988,2]
[349535357,1737283868795,-1394.781451,0.0001988,2]
[349535358,1737283868804,-497.050586,0.0001988,2]
[349535359,1737283868814,-497.050586,0.0001988,2]
[349535360,1737283868824,-593.76315131,0.000199,7]
[349535361,1737283868834,-500.0,0.000199,7]
[349535362,1737283868844,-203.94393132,0.00019942,2]
[349535363,1737283868854,-500.0,0.00019999,2]
[349535364,1737283868863,-41775.80811544,0.0002,2]
[349535365,1737283868872,-13998.75880277,0.0002,2]
[349535366,1737283868881,-1109.729,0.0002,2]
[349535367,1737283868891,-2046.08,0.0002,3]
[349535368,1737283868900,-2301.22497385,0.0002,2]
[349535369,1737283868910,-3000.0,0.0002,2]
[349535370,1737283868919,-3000.0,0.0002,2]
[349535371,1737283868930,-3000.0,0.0002,2]
[349535372,1737283868939,-3000.0,0.0002,2]
[349535373,1737283868949,-3000.0,0.0002,2]
[349535374,1737283868958,-1340.72,0.0002,2]
[349535375,1737283868967,-3929.0,0.0002,2]
[349535376,1737283868977,-230.0,0.0002,2]
[349535377,1737283868987,-8014.59229782,0.0002,10]
[349535378,1737283868996,-44936.17785785,0.0002,2]
[349535379,1737283869005,-2000.0,0.0002,2]
[349535380,1737283869015,-693.970146,0.0002,2]
[349535381,1737283869023,-159.534965,0.0002,2]
[349535382,1737283869033,-1179.248694,0.0002,2]
[349535383,1737283869042,-10476.13094645,0.0002,2]
[349535384,1737283869051,-571.95043746,0.0002,4]
[349535385,1737283869060,-262.75166414,0.0002,2]
[349535386,1737283869069,-151.0,0.0002,2]
[349535387,1737283869079,-166.969208,0.0002,2]
[349535388,1737283869088,-500.0,0.0002,2]
[349535389,1737283869097,-500.0,0.0002,2]
[349535390,1737283869106,-500.0,0.0002,2]
[349535391,1737283869115,-500.0,0.0002,2]
[349535392,1737283869125,-568.84811581,0.0002,2]
[349535393,1737283869134,-500.0,0.0002,2]
[349535394,1737283869144,-500.0,0.0002,2]
[349535395,1737283869153,-500.0,0.0002,2]
[349535396,1737283869163,-500.0,0.0002,2]
[349535397,1737283869173,-500.0,0.0002,2]
[349535398,1737283869185,-500.0,0.0002,2]
[349535399,1737283869195,-500.0,0.0002,2]
[349535400,1737283869203,-500.0,0.0002,2]
[349535401,1737283869213,-500.0,0.0002,2]
[349535402,1737283869222,-500.0,0.0002,2]
[349535403,1737283869231,-500.0,0.0002,2]
[349535404,1737283869240,-500.0,0.0002,2]
[349535405,1737283869250,-500.0,0.0002,2]
[349535406,1737283869263,-500.0,0.0002,2]
[349535407,1737283869272,-879.97,0.0002,2]
[349535408,1737283869280,-538.6,0.0002,2]
[349535409,1737283869289,-500.0,0.0002,2]
[349535410,1737283869299,-500.0,0.0002,2]
[349535411,1737283869308,-500.0,0.0002,2]
[349535412,1737283869318,-500.0,0.0002,2]
[349535413,1737283869327,-500.0,0.0002,2]
[349535414,1737283869337,-506.32,0.0002,2]
[349535415,1737283869346,-500.0,0.0002,2]
[349535416,1737283869355,-500.0,0.0002,2]
[349535417,1737283869364,-1099.14,0.0002,2]
[349535418,1737283869374,-500.0,0.0002,2]
[349535419,1737283869383,-500.0,0.0002,2]
[349535420,1737283869392,-500.0,0.0002,2]
[349535421,1737283869401,-672.06,0.0002,2]
[349535422,1737283869410,-500.0,0.0002,2]
[349535423,1737283869419,-500.0,0.0002,2]
[349535424,1737283869430,-500.0,0.0002,2]
[349535425,1737283869439,-500.0,0.0002,2]
[349535426,1737283869448,-500.0,0.0002,2]
[349535427,1737283869457,-500.0,0.0002,2]
[349535428,1737283869466,-500.0,0.0002,2]
[349535429,1737283869475,-500.0,0.0002,2]
[349535430,1737283869484,-500.0,0.0002,2]
[349535431,1737283869493,-500.0,0.0002,2]
[349535432,1737283869503,-500.0,0.0002,2]
[349535433,1737283869512,-500.0,0.0002,2]
[349535434,1737283869522,-500.0,0.0002,2]
[349535435,1737283869531,-500.0,0.0002,2]
[349535436,1737283869541,-500.0,0.0002,2]
[349535437,1737283869549,-500.0,0.0002,2]
[349535438,1737283869558,-509.62132702,0.0002,2]
[349535439,1737283869567,-299.41875804,0.0002,2]
[349535440,1737283869577,-500.0,0.0002,2]
[349535441,1737283869586,-500.0,0.0002,2]
[349535442,1737283869595,-500.0,0.0002,2]
[349535443,1737283869604,-500.0,0.0002,2]
[349535444,1737283869613,-500.0,0.0002,2]
[349535445,1737283869622,-500.0,0.0002,2]
[349535446,1737283869631,-500.0,0.0002,2]
[349535447,1737283869640,-428.72177922,0.0002,2]
[349535448,1737283869649,-500.0,0.0002,2]
[349535449,1737283869659,-500.0,0.0002,2]
[349535450,1737283869667,-259.06821133,0.0002,2]
[349535451,1737283869678,-500.0,0.0002,2]
[349535452,1737283869687,-500.0,0.0002,2]
[349535453,1737283869696,-500.0,0.0002,2]
[349535454,1737283869705,-500.0,0.0002,2]
[349535455,1737283869714,-179.65627286,0.0002,2]
[349535456,1737283869723,-500.0,0.0002,2]
[349535457,1737283869732,-500.0,0.0002,2]
[349535458,1737283869742,-791.74,0.0002,2]
[349535459,1737283869751,-528.08656584,0.0002,2]
[349535460,1737283869759,-500.0,0.0002,2]
[349535461,1737283869768,-500.0,0.0002,2]
[349535462,1737283869777,-500.0,0.0002,2]
[349535463,1737283869787,-500.0,0.0002,2]
[349535464,1737283869797,-500.0,0.0002,2]
[349535465,1737283869806,-500.0,0.0002,2]
[349535466,1737283869815,-500.0,0.0002,2]
[349535467,1737283869824,-500.0,0.0002,2]
[349535468,1737283869833,-500.0,0.0002,2]
[349535469,1737283869842,-592.14127904,0.0002,2]
[349535470,1737283869852,-500.0,0.0002,2]
[349535471,1737283869861,-500.0,0.0002,2]
[349535472,1737283869871,-500.0,0.0002,2]
[349535473,1737283870003,-500.0,0.0002,2]
[349535474,1737283870022,-519.41997753,0.0002,2]
[349535475,1737283870031,-500.0,0.0002,2]
[349535476,1737283870041,-500.0,0.0002,2]
[349535477,1737283870050,-533.94,0.0002,2]
[349535478,1737283870059,-511.08266642,0.0002,2]
[349535479,1737283870068,-500.0,0.0002,2]
[349535480,1737283870077,-500.0,0.0002,2]
[349535481,1737283870087,-500.0,0.0002,2]
[349535482,1737283870096,-506.618299,0.0002,2]
[349535483,1737283870106,-500.0,0.0002,2]
[349535484,1737283870115,-500.0,0.0002,2]
[349535485,1737283870125,-510.91242949,0.0002,2]
[349535486,1737283870134,-500.0,0.0002,2]
[349535487,1737283870143,-969.95,0.0002,2]
[349535488,1737283870152,-500.0,0.0002,2]
[349535489,1737283870161,-500.0,0.0002,2]
[349535490,1737283870170,-500.0,0.0002,2]
[349535491,1737283870182,-500.0,0.0002,2]
[349535492,1737283870191,-500.0,0.0002,2]
[349535493,1737283870201,-500.0,0.0002,2]
[349535494,1737283870211,-500.0,0.0002,2]
[349535495,1737283870219,-500.0,0.0002,2]
[349535496,1737283870229,-500.0,0.0002,2]
[349535497,1737283870238,-500.0,0.0002,2]
[349535498,1737283870249,-1154.09,0.0002,2]
[349535499,1737283870261,-500.0,0.0002,2]
[349535500,1737283870271,-546.77,0.0002,2]
[349535501,1737283870279,-500.0,0.0002,2]
[349535502,1737283870289,-500.0,0.0002,2]
[349535503,1737283870299,-500.0,0.0002,2]
[349535504,1737283870308,-514.9467934,0.0002,2]
[349535505,1737283870317,-606.79998615,0.0002,2]
[349535506,1737283870327,-1248.1,0.0002,2]
[349535507,1737283870336,-500.0,0.0002,2]
[349535508,1737283870346,-500.0,0.0002,2]
[349535509,1737283870355,-857.42,0.0002,2]
[349535510,1737283870363,-500.0,0.0002,2]
[349535511,1737283870372,-1848.61,0.0002,2]
[349535512,1737283870381,-500.0,0.0002,2]
[349535513,1737283870390,-1098.96,0.0002,2]
[349535514,1737283870399,-500.0,0.0002,2]
[349535515,1737283870408,-500.0,0.0002,2]
[349535516,1737283870417,-500.0,0.0002,2]
[349535517,1737283870428,-2979.32,0.0002,2]
[349535518,1737283870437,-500.0,0.0002,2]
[349535519,1737283870446,-510.64321814,0.0002,2]
[349535520,1737283870455,-500.0,0.0002,2]
[349535521,1737283870466,-500.0,0.0002,2]
[349535522,1737283870475,-793.62,0.0002,2]
[349535523,1737283870485,-521.72017499,0.0002,2]
[349535524,1737283870494,-500.0,0.0002,2]
[349535525,1737283870503,-500.0,0.0002,2]
[349535526,1737283870515,-500.0,0.0002,2]
[349535527,1737283870524,-500.0,0.0002,2]
[349535528,1737283870535,-500.0,0.0002,2]
[349535529,1737283870546,-1198.76,0.0002,2]
[349535530,1737283870555,-572.69,0.0002,2]
[349535531,1737283870564,-500.0,0.0002,2]
[349535532,1737283870573,-500.0,0.0002,2]
[349535533,1737283870583,-500.0,0.0002,2]
[349535534,1737283870592,-500.0,0.0002,2]
[349535535,1737283870601,-500.0,0.0002,2]
[349535536,1737283870611,-745.22,0.0002,2]
[349535537,1737283870620,-500.0,0.0002,2]
[349535538,1737283870629,-500.0,0.0002,2]
[349535539,1737283870637,-500.0,0.0002,2]